bitfinex-derivatives/quotes_ETHF0:USTF0_20210401
["timestamp","ask_amount","ask_price","bid_price","bid_amount"]
[1617260620561,5.91430726,1912.1,1912.0,17.5715]
[1617260620964,3.82706343,1912.1,1912.0,17.5715]
[1617260621364,8.73424589,1912.1,1912.0,17.5715]
[1617260621562,8.73424589,1912.1,1912.0,16.978]
[1617260621762,2.90695,1912.1,1912.0,16.978]
[1617260621961,3.82704448,1912.1,1912.0,16.978]
[1617260622163,5.33584448,1912.1,1912.0,16.978]
[1617260622364,7.42289551,1912.1,1912.0,16.978]
[1617260622960,7.42289551,1912.1,1912.0,16.762]
[1617260623161,7.42289551,1912.1,1912.0,16.5776]
[1617260623363,5.33584448,1912.1,1912.0,16.5776]
[1617260623564,5.33584448,1912.1,1912.0,16.4597]
[1617260624262,5.33584448,1912.1,1912.0,14.5591]
[1617260624263,7.42083639,1912.1,1912.0,14.5591]
[1617260624463,7.42083639,1912.1,1912.0,9.1879]
[1617260624662,7.42083639,1912.1,1912.0,3.8167]
[1617260624864,7.42083639,1912.1,1910.9,2.46535]
[1617260625064,86.8403,1912.0,1910.9,2.09035]
[1617260625263,2.90695,1911.0,1910.9,2.09035]
[1617260625665,4.51875,1911.0,1910.9,2.09035]
[1617260626062,4.51875,1911.0,1910.7,14.226]
[1617260626763,4.51875,1911.0,1910.7,14.0409]
[1617260627365,82.962,1910.7,1910.3,2.90695]
[1617260627565,83.9982,1910.7,1910.3,2.90695]
[1617260627763,83.9982,1910.7,1909.3,30.0]
[1617260628164,0.01484714,1910.1,1909.3,30.0]
[1617260628566,0.01484714,1910.1,1909.5,30.0]
[1617260628964,0.01484518,1910.0,1909.5,30.0]
[1617260629364,0.01484518,1910.0,1909.9,2.90695]
[1617260629565,0.01484518,1910.0,1909.9,32.90695]
[1617260629768,0.04454586,1910.2,1910.0,76.5948]
[1617260629967,0.01485272,1910.3,1910.1,30.0]
[1617260631368,2.90695,1910.2,1910.1,30.0]
[1617260631770,2.9217995,1910.2,1910.1,30.0]
[1617260632769,2.90695,1910.2,1910.1,30.0]
[1617260632970,2.90695,1910.2,1910.0,30.0]
[1617260633174,2.92180264,1910.2,1910.0,30.0]
[1617260633470,2.92180264,1910.2,1910.1,2.90695]
[1617260633670,2.92180264,1910.2,1910.0,30.0]
[1617260634371,2.90695,1910.2,1910.0,30.0]
[1617260635375,2.90695,1910.2,1910.0,32.90695]
[1617260635776,2.92175213,1910.2,1910.0,2.90695]
[1617260635975,3.96005213,1910.2,1910.0,2.90695]
[1617260636376,5.35815213,1910.2,1910.0,2.90695]
[1617260636578,5.35815213,1910.2,1910.0,32.90695]
[1617260636777,4.31985213,1910.2,1910.0,32.90695]
[1617260637278,2.90695,1910.2,1910.0,32.90695]
[1617260637479,2.90695,1910.2,1910.0,2.90695]
[1617260637680,2.92175033,1910.2,1910.0,2.90695]
[1617260638379,2.92175033,1910.2,1910.1,30.0]
[1617260638781,2.95135579,1910.2,1910.1,30.0]
[1617260639180,2.95135579,1910.2,1910.0,2.90695]
[1617260639380,2.93655546,1910.2,1910.0,2.90695]
[1617260639581,0.01479986,1910.1,1910.0,2.90695]
[1617260640380,1.06039986,1910.1,1910.0,2.90695]
[1617260640581,1.07519748,1910.1,1910.0,2.90695]
[1617260640782,1.03309748,1910.1,1910.0,2.90695]
[1617260641382,1.03309748,1910.1,1909.8,2.90695]
[1617260641783,0.01479475,1909.9,1909.5,30.0]
[1617260642786,73.9094,1909.6,1909.4,14.8327]
[1617260643184,0.01479074,1909.8,1909.4,14.8327]
[1617260643385,2.90695,1909.5,1909.4,17.73965]
[1617260645190,2.90695,1909.5,1909.4,47.73965]
[1617260647390,2.90695,1909.7,1909.4,47.73965]
[1617260649091,2.88695,1909.7,1909.4,47.73965]
[1617260649492,2.88695,1909.7,1909.6,2.90695]
[1617260650192,2.88695,1909.7,1909.6,32.90695]
[1617260653694,2.87685,1909.7,1909.6,32.90695]
[1617260655296,2.87685,1909.7,1909.6,82.90695]
[1617260655897,2.87685,1909.7,1909.6,50.0]
[1617260657503,2.87685,1909.7,1909.6,52.90695]
[1617260659606,89.57505,1909.7,1909.6,52.90695]
[1617260660810,89.57505,1909.7,1909.6,50.0]
[1617260664213,89.57505,1909.7,1909.6,48.905]
[1617260664214,2.87685,1909.7,1909.6,48.905]
[1617260664413,2.87685,1909.7,1909.6,46.0121]
[1617260664613,2.87685,1909.7,1909.6,37.8192]
[1617260665013,2.87685,1909.7,1909.6,37.353]
[1617260666116,2.87685,1909.7,1909.6,37.0018]
[1617260667815,2.9061342,1909.7,1909.6,37.0018]
[1617260668620,2.8914909,1909.7,1909.6,37.0018]
[1617260669819,2.87685,1909.7,1909.6,37.0018]
[1617260670619,2.87685,1909.7,1909.6,67.0018]
[1617260670822,0.01464429,1909.9,1909.6,67.0018]
[1617260671019,0.01465229,1910.0,1909.6,67.0018]
[1617260671421,0.01465692,1910.1,1909.6,67.0018]
[1617260671620,0.01465692,1910.1,1909.8,2.90695]
[1617260671822,0.70353197,1910.8,1909.8,2.90695]
[1617260671823,0.01465955,1910.7,1909.8,2.90695]
[1617260672024,0.01465955,1910.7,1909.8,4.29575]
[1617260672225,0.01466102,1910.8,1909.8,4.29575]
[1617260673629,2.90695,1909.9,1909.8,34.29575]
[1617260677836,2.01466926,1911.0,1909.8,34.29575]
[1617260678838,2.0,1911.0,1909.8,34.29575]
[1617260679239,83.86367121,1911.1,1909.8,34.29575]
[1617260679439,0.01467121,1911.1,1909.8,34.29575]
[1617260679639,0.01467121,1911.1,1911.0,2.90695]
[1617260679840,0.0147018,1911.4,1911.0,34.01025]
[1617260680239,0.01470305,1911.5,1911.0,34.01025]
[1617260680639,0.0294061,1911.6,1911.0,34.01025]
[1617260680640,0.01470683,1911.6,1911.0,34.01025]
[1617260681041,0.01471084,1911.7,1911.0,34.01025]
[1617260681641,2.90695,1911.1,1911.0,34.01025]
[1617260682041,0.01471084,1911.7,1911.0,34.01025]
[1617260683240,0.01471424,1911.8,1911.0,34.01025]
[1617260683641,2.584,1912.1,1911.0,34.01025]
[1617260683642,2.584,1912.1,1911.6,2.90695]
[1617260683840,2.584,1912.1,1911.7,30.0]
[1617260685243,2.584,1912.1,1911.0,1.1033]
[1617260685443,2.584,1912.1,1911.0,30.0]
[1617260685642,2.90695,1911.2,1911.1,2.90695]
[1617260685842,2.90695,1911.2,1911.1,32.90695]
[1617260686244,70.6844,1912.0,1911.1,32.90695]
[1617260687646,70.6844,1912.0,1911.6,2.90695]
[1617260688246,70.6844,1912.0,1911.1,30.0]
[1617260689647,70.6844,1912.0,1911.2,2.90695]
[1617260689848,0.01474726,1911.8,1911.2,2.90695]
[1617260690047,1.05614726,1911.8,1911.2,2.90695]
[1617260690255,0.01474664,1911.7,1911.2,2.90695]
[1617260690450,0.01474664,1911.7,1911.2,32.90695]
[1617260691650,0.01476285,1911.4,1911.2,32.90695]
[1617260691851,2.90695,1911.3,1911.2,32.90695]
[1617260692250,2.90695,1911.3,1911.2,2.90695]
[1617260692450,2.90695,1911.3,1910.8,30.0]
[1617260692651,2.90695,1911.3,1910.3,14.4054]
[1617260692850,74.5305,1910.9,1910.3,14.4054]
[1617260693052,75.5811,1910.9,1910.3,14.4054]
[1617260693453,0.01474757,1910.8,1910.3,14.4054]
[1617260693651,1.06774757,1910.8,1910.3,14.4054]
[1617260693851,4.04945,1910.4,1910.3,14.4054]
[1617260695451,4.04945,1910.4,1910.2,14.8779]
[1617260697553,4.04945,1910.4,1910.2,44.8779]
[1617260697753,2.90695,1910.4,1910.2,44.8779]
[1617260701461,2.9217088,1910.4,1910.2,44.8779]
[1617260701660,2.9217088,1910.4,1910.2,14.8779]
[1617260701863,3.61857518,1910.4,1910.2,14.8779]
[1617260702862,3.60857518,1910.4,1910.2,14.8779]
[1617260703063,3.60857518,1910.4,1909.7,30.0]
[1617260703263,3.60857518,1910.4,1909.6,37.0018]
[1617260703463,0.71144601,1910.3,1909.6,37.0018]
[1617260703861,2.93659233,1909.7,1909.6,37.0018]
[1617260704264,2.96622548,1909.7,1909.6,37.0018]
[1617260704666,2.96622548,1909.7,1909.6,67.0018]
[1617260705264,2.90695,1909.7,1909.6,67.0018]
[1617260706265,3.20329173,1909.7,1909.6,67.0018]
[1617260707068,2.90695,1909.7,1909.6,67.0018]
[1617260707666,2.93661167,1909.7,1909.6,67.0018]
[1617260707866,0.02966167,1909.7,1909.6,69.90875]
[1617260708067,0.01483859,1909.7,1909.6,69.90875]
[1617260708467,0.01484247,1909.8,1909.6,69.90875]
[1617260708666,0.01484247,1909.8,1909.6,70.99615]
[1617260708867,0.04454492,1910.0,1909.6,70.99615]
[1617260709268,0.01484614,1909.9,1909.6,70.99615]
[1617260709870,0.01484614,1909.9,1909.8,32.90695]
[1617260710970,0.29696614,1910.3,1909.8,32.90695]
[1617260711171,2.90695,1910.4,1909.8,32.90695]
[1617260711172,0.02969694,1910.1,1909.8,32.90695]
[1617260711371,0.29711017,1910.6,1909.8,32.90695]
[1617260711771,0.71330817,1911.0,1909.8,32.90695]
[1617260711970,0.71330817,1911.0,1910.6,30.0]
[1617260712172,3.29742217,1911.1,1910.6,30.0]
[1617260712572,0.71334485,1911.0,1910.6,30.0]
[1617260713374,3.29740891,1911.1,1910.6,30.0]
[1617260713574,0.71434121,1910.8,1910.6,30.0]
[1617260713973,0.71434121,1910.8,1910.7,2.90695]
[1617260714174,0.71434121,1910.8,1910.7,32.90695]
[1617260714374,1.6346846,1910.8,1910.7,32.90695]
[1617260715177,0.71458958,1910.9,1910.7,32.90695]
[1617260715376,0.71458958,1910.9,1910.8,79.8667]
[1617260715577,0.71471155,1911.0,1910.8,109.8667]
[1617260715976,0.71471155,1911.0,1910.9,34.14005]
[1617260715977,1.155e-05,1911.0,1910.9,34.14005]
[1617260716176,0.00011155,1911.1,1910.9,34.14005]
[1617260716376,0.95301137,1911.2,1910.9,34.14005]
[1617260717078,0.95338496,1911.3,1910.9,34.14005]
[1617260717779,8.496e-05,1911.3,1910.9,34.14005]
[1617260717978,2.90695,1911.4,1911.2,2.90695]
[1617260718177,2.90695,1911.4,1911.3,30.0]
[1617260718378,2.90695,1911.4,1911.3,31.482]
[1617260718579,1.18981331,1911.6,1911.3,31.482]
[1617260718779,4.66914782,1911.8,1911.3,31.482]
[1617260718979,2.584,1911.8,1911.6,59.6092]
[1617260719179,2.584,1911.8,1911.7,30.0]
[1617260719379,2.584,1911.8,1911.7,31.3607]
[1617260719980,2.584,1911.8,1911.7,34.26765]
[1617260720680,0.0001,1911.8,1911.7,34.26765]
[1617260720881,5.189,1912.1,1911.7,34.26765]
[1617260721081,2.08632733,1912.2,1911.7,34.26765]
[1617260721281,2.08708803,1912.3,1911.7,34.26765]
[1617260721682,2.08736919,1912.4,1911.7,34.26765]
[1617260721884,2.08736919,1912.4,1912.3,2.90695]
[1617260722082,2.08736919,1912.4,1912.3,34.29005]
[1617260724588,4.99379468,1912.5,1912.3,34.29005]
[1617260725485,4.99379468,1912.5,1912.3,4.29005]
[1617260725686,4.99379468,1912.5,1912.3,2.90695]
[1617260726385,4.99379468,1912.5,1912.3,32.90695]
[1617260726685,4.99379468,1912.5,1912.3,34.15825]
[1617260727186,2.90695,1912.5,1912.3,34.15825]
[1617260730090,4.67116033,1912.7,1912.3,34.15825]
[1617260730294,2.584,1912.7,1912.5,62.1977]
[1617260730494,2.584,1912.7,1912.5,92.1977]
[1617260732093,2.584,1912.7,1912.6,2.90695]
[1617260740100,3.77115076,1912.7,1912.6,2.90695]
[1617260742105,6.67810076,1912.7,1912.6,2.90695]
[1617260743507,6.67810076,1912.7,1912.5,99.2909]
[1617260744308,6.67810076,1912.7,1912.5,37.0018]
[1617260744509,1.18611873,1912.6,1912.5,37.0018]
[1617260745109,6.67713191,1912.7,1912.5,37.0018]
[1617260745309,6.67713191,1912.7,1912.5,38.3399]
[1617260746110,6.67713191,1912.7,1912.5,41.24685]
[1617260747310,5.49095,1912.7,1912.5,41.24685]
[1617260747711,6.67672895,1912.7,1912.5,41.24685]
[1617260749514,6.67672895,1912.7,1912.6,69.73263568]
[1617260749717,5.49095,1912.7,1912.6,69.73263568]
[1617260749913,5.49095,1912.7,1912.6,99.73263568]
[1617260750115,3.53289709,1912.7,1912.6,99.73263568]
[1617260750915,3.53289709,1912.7,1912.6,69.73263568]
[1617260751116,2.584,1912.7,1912.6,69.73263568]
[1617260751719,2.584,1912.7,1912.5,39.90875]
[1617260752117,3.77049101,1912.7,1912.5,37.0018]
[1617260752321,2.90695,1912.6,1912.5,37.0018]
[1617260752918,4.0927648,1912.6,1912.5,37.0018]
[1617260753719,2.90695,1912.6,1912.5,37.0018]
[1617260754123,4.98403849,1912.6,1912.5,37.0018]
[1617260754321,4.98403849,1912.6,1912.5,39.90875]
[1617260754522,2.90695,1912.6,1912.5,39.90875]
[1617260755121,3.85578355,1912.6,1912.5,39.90875]
[1617260755423,2.90695,1912.6,1912.5,39.90875]
[1617260755622,2.90695,1912.6,1912.5,69.90875]
[1617260756221,2.90695,1912.6,1912.5,37.0018]
[1617260759625,4.09647052,1912.6,1912.5,37.0018]
[1617260760324,4.09647052,1912.6,1912.5,39.90875]
[1617260760723,2.90695,1912.6,1912.5,69.90875]
[1617260762926,2.90695,1912.6,1912.5,39.90875]
[1617260763527,2.90695,1912.6,1912.5,69.90875]
[1617260764227,2.90695,1912.6,1912.5,39.90875]
[1617260764926,3.8587601,1912.6,1912.5,39.90875]
[1617260765229,2.90695,1912.6,1912.5,39.90875]
[1617260765933,3.85874701,1912.6,1912.5,39.90875]
[1617260766831,2.90695,1912.6,1912.5,69.90875]
[1617260768133,2.90695,1912.6,1912.5,39.90875]
[1617260772843,2.90695,1912.6,1912.5,54.32765]
[1617260773650,2.584,1912.7,1912.5,84.32765]
[1617260773848,2.584,1912.7,1912.5,47.32585]
[1617260777149,2.0867,1912.7,1912.5,47.32585]
[1617260777349,1.4355,1912.7,1912.5,47.32585]
[1617260777549,1.8202,1912.9,1912.5,47.32585]
[1617260777751,3.38396996,1913.5,1913.4,66.0565]
[1617260777952,2.90695,1913.5,1913.4,67.2503]
[1617260778352,3.38414207,1913.7,1913.4,70.15725]
[1617260778950,0.47717518,1913.6,1913.4,100.15725]
[1617260779352,3.38412823,1913.7,1913.4,100.15725]
[1617260780452,0.47717823,1913.7,1913.6,32.90695]
[1617260781055,0.47734692,1913.8,1913.6,32.90695]
[1617260782253,3.38410525,1913.9,1913.6,32.90695]
[1617260783757,3.38410525,1913.9,1913.6,69.90875]
[1617260784356,2.90695,1913.9,1913.8,4.22095]
[1617260785156,3.38400891,1913.9,1913.8,4.22095]
[1617260785757,3.38400891,1913.9,1913.8,34.22095]
[1617260786457,0.47719168,1914.0,1913.9,69.4344]
[1617260786659,3.38338003,1914.1,1913.9,69.4344]
[1617260786858,3.38338003,1914.1,1913.9,99.4344]
[1617260788059,2.90695,1914.1,1913.9,99.4344]
[1617260788459,2.90695,1914.1,1914.0,2.90695]
[1617260789158,3.383424,1914.1,1914.0,2.90695]
[1617260790362,2.90695,1914.1,1914.0,2.90695]
[1617260790961,5.93021558,1915.2,1914.0,2.90695]
[1617260791163,4.08024348,1915.0,1914.0,2.90695]
[1617260791364,6.08024348,1915.0,1914.0,2.90695]
[1617260791563,0.4763436,1914.1,1914.0,2.90695]
[1617260792463,3.3832936,1914.1,1914.0,2.90695]
[1617260793965,2.90695,1914.1,1914.0,2.90695]
[1617260794469,0.47637727,1914.2,1914.0,2.90695]
[1617260796870,5.90382336,1914.3,1914.0,2.90695]
[1617260797970,2.90695,1914.3,1914.0,2.90695]
[1617260798272,2.90695,1914.3,1914.0,17.00085]
[1617260798470,2.90695,1914.3,1914.2,1.98793718]
[1617260798670,2.90695,1914.3,1914.2,3.61013718]
[1617260799769,2.90695,1914.3,1914.2,33.61013718]
[1617260799971,2.99340212,1914.4,1914.2,33.61013718]
[1617260800171,2.99552243,1914.6,1914.2,33.61013718]
[1617260800372,2.99552243,1914.6,1914.5,2.90695]
[1617260800571,5.90368367,1914.8,1914.6,81.9131]
[1617260800774,5.90368367,1914.8,1914.6,82.9448]
[1617260801171,2.09900692,1914.7,1914.6,82.9448]
[1617260802274,5.9041821,1914.8,1914.6,82.9448]
[1617260802473,5.9041821,1914.8,1914.7,2.90695]
[1617260805375,5.9041821,1914.8,1914.7,52.90695]
[1617260806276,2.90695,1914.8,1914.7,52.90695]
[1617260806576,5.90398887,1914.8,1914.7,52.90695]
[1617260808582,2.90695,1914.8,1914.7,52.90695]
[1617260809981,5.90212202,1914.8,1914.7,54.54335]
[1617260810380,2.90695,1914.8,1914.7,54.54335]
[1617260814287,5.00548185,1914.8,1914.7,54.54335]
[1617260814586,2.09857488,1914.9,1914.7,54.54335]
[1617260815886,5.90297933,1915.0,1914.7,54.54335]
[1617260815887,2.09772871,1914.8,1914.7,54.54335]
[1617260817989,2.09833989,1914.9,1914.7,84.54335]
[1617260819790,2.09831306,1914.8,1914.7,84.54335]
[1617260820390,2.09831306,1914.8,1914.7,54.54335]
[1617260820591,2.09831306,1914.8,1914.7,52.90695]
[1617260822691,5.00526306,1914.8,1914.7,50.0]
[1617260822891,2.90695,1914.8,1914.7,50.0]
[1617260823893,7.09556425,1914.8,1914.7,50.0]
[1617260824893,2.90695,1914.8,1914.7,50.0]
[1617260825293,8.28832894,1914.8,1914.7,41.4535]
[1617260825492,10.28832894,1914.8,1914.0,14.0939]
[1617260825693,82.8711,1914.3,1914.0,14.0939]
[1617260825893,85.3019,1914.3,1914.1,13.8799]
[1617260826093,2.99123329,1914.2,1914.1,13.8799]
[1617260826294,10.16983968,1914.2,1914.1,13.8799]
[1617260826693,12.02528968,1914.2,1914.1,13.8799]
[1617260827594,5.89818329,1914.2,1914.1,13.8799]
[1617260827794,87.12418329,1914.2,1914.1,13.8799]
[1617260827994,86.02418329,1914.2,1914.1,13.8799]
[1617260828196,87.12418329,1914.2,1914.1,13.8799]
[1617260828394,97.34413024,1914.2,1914.1,13.8799]
[1617260828595,97.34413024,1914.2,1914.1,12.528]
[1617260828996,93.25127601,1914.2,1914.1,12.345]
[1617260829599,13.12527601,1914.2,1914.1,12.345]
[1617260830198,4.00695,1914.2,1914.1,12.345]
[1617260830598,5.05975,1914.2,1914.1,12.345]
[1617260831198,2.90695,1914.2,1914.1,12.345]
[1617260831598,5.00233136,1914.2,1914.1,12.345]
[1617260832200,6.05833136,1914.2,1914.1,12.345]
[1617260832598,5.00233136,1914.2,1914.1,12.345]
[1617260833599,8.55023136,1914.2,1914.1,12.345]
[1617260834000,91.28415,1914.2,1914.1,12.345]
[1617260834901,103.3899482,1914.2,1914.1,12.345]
[1617260835299,103.3899482,1914.2,1914.1,11.8609]
[1617260835900,96.31160133,1914.2,1914.1,11.8609]
[1617260837101,11.48230133,1914.2,1914.1,11.8609]
[1617260837304,10.07930133,1914.2,1914.1,11.8609]
[1617260837707,6.94501491,1914.2,1914.1,11.8609]
[1617260839306,6.94501491,1914.2,1914.1,13.1363]
[1617260839506,2.90695,1914.2,1914.1,13.1363]
[1617260842210,5.00374905,1914.2,1914.1,13.1363]
[1617260842411,5.00374905,1914.2,1914.1,11.8609]
[1617260842911,5.00374905,1914.2,1914.1,13.2814]
[1617260843111,2.90695,1914.2,1914.1,12.432]
[1617260844514,2.90695,1914.2,1914.1,11.0115]
[1617260845114,5.90421055,1914.2,1914.1,11.0115]
[1617260845515,6.94261055,1914.2,1914.1,11.0115]
[1617260846114,5.90421055,1914.2,1914.1,11.0115]
[1617260846314,2.90695,1914.2,1914.1,12.1126]
[1617260849116,5.90588778,1914.2,1914.1,12.1126]
[1617260849816,2.90695,1914.2,1914.1,12.1126]
[1617260850219,5.90609652,1914.2,1914.1,12.1126]
[1617260851018,2.90695,1914.2,1914.1,12.1126]
[1617260852418,5.00774271,1914.2,1914.1,11.0567]
[1617260852922,2.90695,1914.2,1914.1,11.0567]
[1617260853320,3.94185,1914.2,1914.1,11.0567]
[1617260853721,3.94185,1914.2,1914.1,9.9556]
[1617260854421,6.94415332,1914.2,1914.1,9.9556]
[1617260855021,6.94415332,1914.2,1914.1,69.392]
[1617260859030,3.94185,1914.2,1914.1,69.392]
[1617260861130,3.94185,1914.2,1914.1,68.585]
[1617260861430,3.94185,1914.2,1914.1,67.878]
[1617260861732,8.14560767,1914.2,1914.1,67.878]
[1617260862832,3.94185,1914.2,1914.1,67.878]
[1617260863234,4.20393994,1914.3,1914.1,8.4416]
[1617260863634,3.00417951,1914.2,1914.1,8.4416]
[1617260863835,3.00485448,1914.3,1914.1,8.4416]
[1617260864836,2.10493577,1914.3,1914.1,8.4416]
[1617260865036,2.10493577,1914.3,1914.2,4.56565]
[1617260865237,7.0127142,1914.5,1914.2,4.56565]
[1617260865238,2.10530479,1914.4,1914.2,4.56565]
[1617260865639,3.0123274,1914.3,1914.2,4.56565]
[1617260866237,3.01229458,1914.4,1914.2,4.56565]
[1617260866436,3.01229458,1914.4,1914.3,63.1081]
[1617260867040,7.12123922,1914.5,1914.3,63.1081]
[1617260869036,7.12123922,1914.5,1914.4,2.90695]
[1617260869537,2.90695,1914.5,1914.4,2.90695]
[1617260871542,7.11861408,1914.5,1914.4,2.90695]
[1617260873045,2.90695,1914.5,1914.4,2.90695]
[1617260873849,4.20788152,1914.6,1914.4,2.90695]
[1617260874449,4.20788152,1914.6,1914.4,52.90695]
[1617260874750,3.0068989,1914.5,1914.4,52.90695]
[1617260877153,15.0068989,1914.5,1914.4,52.90695]
[1617260879254,12.0,1914.5,1914.4,52.90695]
[1617260879955,13.22471276,1914.5,1914.4,52.90695]
[1617260880356,12.0,1914.5,1914.4,52.90695]
[1617260880756,13.22471052,1914.5,1914.4,52.90695]
[1617260880959,13.22471052,1914.5,1914.4,82.90695]
[1617260881162,14.10083068,1914.5,1914.4,82.90695]
[1617260881962,12.0,1914.5,1914.4,82.90695]
[1617260883562,13.19928011,1914.5,1914.4,82.90695]
[1617260884663,12.0,1914.5,1914.4,82.90695]
[1617260885263,12.95827283,1914.5,1914.4,82.90695]
[1617260886063,12.0,1914.5,1914.4,82.90695]
[1617260887967,12.95777835,1914.5,1914.4,82.90695]
[1617260889170,12.95777835,1914.5,1914.4,52.90695]
[1617260894574,12.0,1914.5,1914.4,52.90695]
[1617260894974,12.95762048,1914.5,1914.4,52.90695]
[1617260896375,12.0,1914.5,1914.4,52.90695]
[1617260897576,12.0,1914.5,1914.4,82.90695]
[1617260897777,12.71852478,1914.5,1914.4,82.90695]
[1617260899979,12.0,1914.5,1914.4,82.90695]
[1617260901580,12.0,1914.5,1914.4,82.88695]
[1617260908985,12.47833017,1914.5,1914.4,82.88695]
[1617260910785,12.29883738,1914.5,1914.4,82.88695]
[1617260912187,12.29883738,1914.5,1914.4,155.87135]
[1617260912989,12.29883738,1914.5,1914.4,82.88695]
[1617260913790,55.30573866,1915.2,1914.5,73.4281]
[1617260915491,55.30573866,1915.2,1915.1,1.98867805]
[1617260915892,55.30573866,1915.2,1915.1,3.50477805]
[1617260916992,55.30573866,1915.2,1915.1,3.48477805]
[1617260917394,55.30573866,1915.2,1915.1,1.96867805]
[1617260918194,55.30573866,1915.2,1914.5,73.4281]
[1617260919595,55.30573866,1915.2,1915.1,2.90695]
[1617260919795,2.90695,1915.3,1915.1,2.90695]
[1617260921398,2.90695,1915.3,1915.2,70.1998]
[1617260925198,2.90695,1915.3,1915.2,84.108]
[1617260925399,2.90695,1915.3,1915.2,13.9082]
[1617260928000,5.00904353,1915.3,1915.2,13.9082]
[1617260928700,5.00904353,1915.3,1915.2,63.9082]
[1617260934207,5.00904353,1915.3,1915.2,138.0228]
[1617260937011,5.00904353,1915.3,1915.2,63.9082]
[1617260937412,5.91205881,1915.3,1915.2,60.8858]
[1617260937612,5.91205881,1915.3,1915.2,52.1206]
[1617260937813,10.1297318,1915.3,1915.2,51.9185]
[1617260938313,4.00695,1915.3,1915.2,51.9185]
[1617260939014,8.31602829,1915.3,1915.2,51.9185]
[1617260940315,8.31602829,1915.3,1915.2,52.9511]
[1617260940514,2.90695,1915.3,1915.2,52.9511]
[1617260941316,2.90695,1915.3,1915.2,54.5584]
[1617260941716,7.11709405,1915.3,1915.2,57.46535]
[1617260941916,7.11709405,1915.3,1915.2,56.43275]
[1617260942317,3.00908775,1915.3,1915.2,56.43275]
[1617260942717,3.01013968,1915.4,1915.2,56.43275]
[1617260942916,3.01013968,1915.4,1915.2,57.48575]
[1617260943118,2.10823882,1915.3,1915.2,56.43275]
[1617260943816,2.10823882,1915.3,1915.2,86.43275]
[1617260944217,1.20392243,1915.4,1915.2,86.43275]
[1617260944617,0.96234447,1915.4,1915.2,86.43275]
[1617260945617,0.96256021,1915.5,1915.2,86.43275]
[1617260946019,0.9180186,1915.3,1915.2,86.43275]
[1617260946419,0.96256021,1915.5,1915.2,86.43275]
[1617260946620,0.918009,1915.3,1915.2,86.43275]
[1617260947017,0.96256021,1915.5,1915.3,61.0591]
[1617260947218,0.96256021,1915.5,1915.4,30.0]
[1617260947419,0.96265197,1915.6,1915.4,30.0]
[1617260947618,0.96265197,1915.6,1915.5,2.90695]
[1617260947819,0.96265197,1915.6,1915.5,32.90695]
[1617260949021,0.91796773,1915.6,1915.5,32.90695]
[1617260949922,1.88092685,1915.7,1915.6,64.561]
[1617260950122,1.88092685,1915.7,1915.6,95.8248]
[1617260950924,0.91797025,1915.7,1915.6,95.8248]
[1617260955835,1.88151819,1915.7,1915.6,95.8248]
[1617260956933,1.88151819,1915.7,1915.6,145.8248]
[1617260957435,1.88151819,1915.7,1915.6,160.3263]
[1617260959040,0.91797025,1915.7,1915.6,160.3263]
[1617260959440,0.91797025,1915.7,1915.6,95.7653]
[1617260959641,1.88144846,1915.7,1915.6,95.7653]
[1617260960841,0.91797025,1915.7,1915.6,95.7653]
[1617260962242,1.88153679,1915.7,1915.6,95.7653]
[1617260962842,2.12350549,1915.7,1915.6,95.7653]
[1617260966547,2.12350549,1915.7,1915.6,162.3039]
[1617260968350,2.12350549,1915.7,1915.6,132.3039]
[1617260970253,2.12350549,1915.7,1915.6,95.7653]
[1617260970753,0.91797025,1915.7,1915.6,95.7653]
[1617260973555,1.88220079,1915.7,1915.6,95.7653]
[1617260974856,0.91797025,1915.7,1915.6,95.7653]
[1617260975758,1.88219263,1915.7,1915.6,95.7653]
[1617260976958,0.91797025,1915.7,1915.6,95.7653]
[1617260977959,1.88190271,1915.7,1915.6,95.7653]
[1617260992771,2.584,1915.8,1915.7,26.11809729]
[1617260993972,2.584,1915.8,1915.7,29.02504729]
[1617260994373,2.584,1915.8,1915.7,96.49044729]
[1617260995573,3.79000699,1915.8,1915.7,96.49044729]
[1617260996274,2.584,1915.8,1915.7,96.49044729]
[1617260997876,2.584,1915.8,1915.7,29.02504729]
[1617260998075,3.78959014,1915.8,1915.7,29.02504729]
[1617260999075,3.78959014,1915.8,1915.7,59.02504729]
[1617260999476,2.584,1915.8,1915.7,59.02504729]
[1617261000878,3.79083412,1915.8,1915.7,59.02504729]
[1617261001879,3.79083412,1915.8,1915.7,48.02504729]
[1617261005881,2.584,1915.8,1915.7,48.02504729]
[1617261006681,3.79078126,1915.8,1915.7,48.02504729]
[1617261008684,2.584,1915.8,1915.7,48.02504729]
[1617261008890,2.584,1915.8,1915.7,107.78614729]
[1617261010490,2.584,1915.8,1915.7,48.02504729]
[1617261010693,80.6434,1915.8,1915.7,18.02504729]
[1617261011091,86.76310334,1915.8,1915.7,18.02504729]
[1617261011491,89.78515084,1915.8,1915.7,18.02504729]
[1617261012092,92.69210084,1915.8,1915.7,18.02504729]
[1617261012493,89.67005334,1915.8,1915.7,18.02504729]
[1617261012894,93.8976191,1915.8,1915.7,18.02504729]
[1617261013294,89.67005334,1915.8,1915.7,18.02504729]
[1617261014294,11.61065334,1915.8,1915.7,15.11809729]
[1617261014695,5.49095,1915.8,1915.7,15.11809729]
[1617261015395,11.96343151,1915.8,1915.7,15.11809729]
[1617261015594,10.92453151,1915.8,1915.7,15.11809729]
[1617261016196,5.49095,1915.8,1915.7,15.11809729]
[1617261018400,10.92428246,1915.8,1915.7,15.11809729]
[1617261018999,90.64338246,1915.8,1915.7,15.11809729]
[1617261019197,85.21005,1915.8,1915.7,15.11809729]
[1617261019397,13.45514419,1915.8,1915.7,15.11809729]
[1617261019797,13.45514419,1915.8,1915.7,83.01739729]
[1617261019998,4.22736641,1915.8,1915.7,83.01739729]